{"text_format":"1","workbook":"xlsx","n_sheets":6,"sheets":["DRESSAGE","CSO","CROSS","EQUIFUN","ATTELAGE","COMBINE"],"not_rendered":{"charts":0,"images":0,"macros":1,"external_links":0,"defined_names":3,"comments":0,"pivot_tables":0},"unopened":[],"bounds":{"document_bytes":16777216,"sheet_cells":100000,"rows_first":2000,"rows_last":500,"rows_between":2000,"halvings":0,"cell_chars":16384,"cell_head_chars":4096},"cells_cut":0,"cells_raw":0,"read":"whole","date_system":"1900"}

{"sheet":"DRESSAGE","index":0,"n_rows":40,"n_cols":10,"rows_kept":40,"cut":false,"hidden":false,"merged":[[0,0,0,9],[1,0,1,9],[2,0,2,9]]}
["CHAMPIONNAT DE FRANCE SPORT ADAPTE EQUITATION"]
["19 et 20 JUIN 2014 - LES RENES DE LA VIE - SAINT LO"]
["DRESSAGE - DIVISION 1 VETERANS"]
[]
[]
[null,"Nombre de partants :",{"$f":"COUNTA(B8:B40)","v":9}]
["Dossard","Cavalier","Cheval","Association","Juge 1","Pénal.","Juge 2","Pénal.","TOTAL","Classement"]
[1,"DUCROCQ Guillaume","ESTORIAC","Association Sportive des Vallées",112,null,114,null,{"$f":"(E8-F8+G8-H8)/2","v":113},5]
[2,"ISSNER Albert","HOTESSE","ASCETH Mulhouse",105,null,107,null,{"$f":"(E9-F9+G9-H9)/2","v":106},6]
[3,"PEGUILLAT Nathalie","BARTH","ASAL 39",131,null,124,null,{"$f":"(E10-F10+G10-H10)/2","v":127.5},3]
[4,"SIMON Philippe","NORA de la PRAIRIE","ASFAA Foyer Renoir",120,null,118,null,{"$f":"(E11-F11+G11-H11)/2","v":119},4]
[5,"MATORVIEZORNAVA Frédéric","JUS POMME","ASFAA Foyer Renoir",103,2,108,2,{"$f":"(E12-F12+G12-H12)/2","v":103.5},7]
[6,"REAU Patrick","NORA de la PRAIRIE","ASFAA Foyer Renoir",105,4,101,4,{"$f":"(E13-F13+G13-H13)/2","v":99},8]
[7,"BOISDRON François","LYNDA","ASFAA Foyer Renoir",150,null,132,null,{"$f":"(E14-F14+G14-H14)/2","v":141},1]
[8,"GRAVE Michel","NAOMIE","Les rênes de la vie (Poney Club La Choinetière)",150,null,132,null,{"$f":"(E15-F15+G15-H15)/2","v":141},1]
[9,"LE GUEN Bruno","UN ESPOIR","CLAP 22",135,null,146,null,140.5,2]
[null,null,null,null,null,null,null,null,{"$f":"(E17-F17+G17-H17)/2","v":0}]
[null,null,null,null,null,null,null,null,0]
[null,null,null,null,null,null,null,null,0]
[null,null,null,null,null,null,null,null,0]
[null,null,null,null,null,null,null,null,0]
[null,null,null,null,null,null,null,null,0]
[null,null,null,null,null,null,null,null,0]
[null,null,null,null,null,null,null,null,0]
[null,null,null,null,null,null,null,null,0]
[null,null,null,null,null,null,null,null,0]
[null,null,null,null,null,null,null,null,0]
[null,null,null,null,null,null,null,null,0]
[null,null,null,null,null,null,null,null,0]
[null,null,null,null,null,null,null,null,0]
[null,null,null,null,null,null,null,null,0]
[null,null,null,null,null,null,null,null,0]
[null,null,null,null,null,null,null,null,0]
[null,null,null,null,null,null,null,null,0]
[null,null,null,null,null,null,null,null,0]
[null,null,null,null,null,null,null,null,0]
[null,null,null,null,null,null,null,null,0]
[null,null,null,null,null,null,null,null,0]
[null,null,null,null,null,null,null,null,0]
[null,null,null,null,null,null,null,null,0]

{"sheet":"CSO","index":1,"n_rows":44,"n_cols":8,"rows_kept":44,"cut":false,"hidden":false,"merged":[[0,0,0,7],[1,0,1,7],[2,0,2,7]]}
["CHAMPIONNAT DE FRANCE SPORT ADAPTE EQUITATION"]
["19 et 20 JUIN 2014 - LES RENES DE LA VIE - SAINT LO"]
["CSO - DIVISION 1 VETERANS"]
[]
[]
[null,"Nombre de partants :",{"$f":"COUNTA(B8:B44)","v":9}]
["Dossard","Cavalier","Cheval","Association","Pénalités piste","Note style","TOTAL","Classement"]
[1,"DUCROCQ Guillaume","ESTORIAC","Association Sportive des Vallées",0,38,{"$f":"F8-E8","v":38},1]
[2,"ISSNER Albert","ISMAEL","ASCETH Mulhouse",0,30.5,{"$f":"F9-E9","v":30.5},3]
[3,"PEGUILLAT Nathalie","BARTH","ASAL 39",4,25,{"$f":"F10-E10","v":21},5]
[4,"SIMON Philippe","NORA de la PRAIRIE","ASFAA Foyer Renoir"]
[5,"MATORVIEZORNAVA Frédéric","JUS POMME","ASFAA Foyer Renoir"]
[6,"REAU Patrick","NORA de la PRAIRIE","ASFAA Foyer Renoir"]
[7,"BOISDRON François","LYNDA","ASFAA Foyer Renoir"]
[8,"GRAVE Michel","NAOMIE","Les rênes de la vie (Poney Club La Choinetière)",0,31,{"$f":"F15-E15","v":31},2]
[9,"LE GUEN Bruno","UN ESPOIR","CLAP 22",0,25,{"$f":"F16-E16","v":25},4]
[null,null,null,null,null,null,{"$f":"F17-E17","v":0}]
[null,null,null,null,null,null,0]
[null,null,null,null,null,null,0]
[null,null,null,null,null,null,0]
[null,null,null,null,null,null,0]
[null,null,null,null,null,null,0]
[null,null,null,null,null,null,0]
[null,null,null,null,null,null,0]
[null,null,null,null,null,null,0]
[null,null,null,null,null,null,0]
[null,null,null,null,null,null,0]
[null,null,null,null,null,null,0]
[null,null,null,null,null,null,0]
[null,null,null,null,null,null,0]
[null,null,null,null,null,null,0]
[null,null,null,null,null,null,0]
[null,null,null,null,null,null,0]
[null,null,null,null,null,null,0]
[null,null,null,null,null,null,0]
[null,null,null,null,null,null,0]
[null,null,null,null,null,null,0]
[null,null,null,null,null,null,0]
[null,null,null,null,null,null,0]
[null,null,null,null,null,null,0]
[null,null,null,null,null,null,0]
[null,null,null,null,null,null,0]
[null,null,null,null,null,null,0]
[null,null,null,null,null,null,0]

{"sheet":"CROSS","index":2,"n_rows":44,"n_cols":11,"rows_kept":44,"cut":false,"hidden":false,"merged":[[0,0,0,10],[1,0,1,10],[2,0,2,10]]}
["CHAMPIONNAT DE FRANCE SPORT ADAPTE EQUITATION"]
["19 et 20 JUIN 2014 - LES RENES DE LA VIE - SAINT LO"]
["CROSS - DIVISION 1 VETERANS"]
[]
[]
[null,"Nombre de partants :",{"$f":"COUNTA(B8:B44)","v":9},null,"Tps maxi :",110]
["Dossard","Cavalier","Cheval","Association","Pénalités cross","Temps cross","Pénalités Tps","Total Pénalités","Note style","TOTAL","Classement"]
[1,"DUCROCQ Guillaume","ESTORIAC","Association Sportive des Vallées",0,112,11,{"$f":"E8+G8","v":11},24,{"$f":"I8-H8","v":13},5]
[2,"ISSNER Albert","ISMAEL","ASCETH Mulhouse",0,96,3,{"$f":"E9+G9","v":3},34,{"$f":"I9-H9","v":31},2]
[3,"PEGUILLAT Nathalie","BARTH","ASAL 39",0,105,7.5,{"$f":"E10+G10","v":7.5},35,{"$f":"I10-H10","v":27.5},3]
[4,"SIMON Philippe","NORA de la PRAIRIE","ASFAA Foyer Renoir"]
[5,"MATORVIEZORNAVA Frédéric","JUS POMME","ASFAA Foyer Renoir"]
[6,"REAU Patrick","NORA de la PRAIRIE","ASFAA Foyer Renoir"]
[7,"BOISDRON François","LYNDA","ASFAA Foyer Renoir"]
[8,"GRAVE Michel","NAOMIE","Les rênes de la vie (Poney Club La Choinetière)",0,97,3.5,{"$f":"E15+G15","v":3.5},35,{"$f":"I15-H15","v":31.5},1]
[9,"LE GUEN Bruno","UN ESPOIR","CLAP 22",0,108,4.5,{"$f":"E16+G16","v":4.5},25,{"$f":"I16-H16","v":20.5},4]
[null,null,null,null,null,null,{"$f":"IF(($F$6-F17)>15,10,IF(($F$6-F17)<0,($F$6-F17)*-0.5,0))","v":10},{"$f":"E17+G17","v":10},null,{"$f":"I17-H17","v":-10}]
[null,null,null,null,null,null,10,10,null,-10]
[null,null,null,null,null,null,10,10,null,-10]
[null,null,null,null,null,null,10,10,null,-10]
[null,null,null,null,null,null,10,10,null,-10]
[null,null,null,null,null,null,10,10,null,-10]
[null,null,null,null,null,null,10,10,null,-10]
[null,null,null,null,null,null,10,10,null,-10]
[null,null,null,null,null,null,10,10,null,-10]
[null,null,null,null,null,null,10,10,null,-10]
[null,null,null,null,null,null,10,10,null,-10]
[null,null,null,null,null,null,10,10,null,-10]
[null,null,null,null,null,null,10,10,null,-10]
[null,null,null,null,null,null,10,10,null,-10]
[null,null,null,null,null,null,10,10,null,-10]
[null,null,null,null,null,null,10,10,null,-10]
[null,null,null,null,null,null,10,10,null,-10]
[null,null,null,null,null,null,10,10,null,-10]
[null,null,null,null,null,null,10,10,null,-10]
[null,null,null,null,null,null,10,10,null,-10]
[null,null,null,null,null,null,10,10,null,-10]
[null,null,null,null,null,null,10,10,null,-10]
[null,null,null,null,null,null,10,10,null,-10]
[null,null,null,null,null,null,10,10,null,-10]
[null,null,null,null,null,null,10,10,null,-10]
[null,null,null,null,null,null,10,10,null,-10]
[null,null,null,null,null,null,10,10,null,-10]
[null,null,null,null,null,null,10,10,null,-10]

{"sheet":"EQUIFUN","index":3,"n_rows":14,"n_cols":10,"rows_kept":14,"cut":false,"hidden":false,"merged":[[0,0,0,9],[1,0,1,9],[2,0,2,9]]}
["CHAMPIONNAT DE FRANCE SPORT ADAPTE EQUITATION"]
["19 et 20 JUIN 2014 - LES RENES DE LA VIE - SAINT LO"]
["EQUIFUN - DIVISION 1 VETERANS"]
[]
[]
[null,"Nombre de partants :",{"$f":"COUNTA(B8:B40)","v":7}]
["Dossard","Cavalier","Cheval","Association","Juge 1","Juge 2","Pénalités","TOTAL","Temps","Classement"]
[8,"GRAVE Michel","NAOMIE","Les rênes de la vie (Poney Club La Choinetière)",98,96,null,{"$f":"E8+F8-G8","v":194},101.73,1]
[4,"SIMON Philippe","NORA de la PRAIRIE","ASFAA Foyer Renoir",94,98,null,192,85.84,2]
[6,"REAU Patrick","NORA de la PRAIRIE","ASFAA Foyer Renoir",88,92,null,180,116.72,3]
[7,"BOISDRON François","LYNDA","ASFAA Foyer Renoir",86,90,null,176,134.87,4]
[2,"ISSNER Albert","HOTESSE","ASCETH Mulhouse",86,84,null,170,73.540000000000006,5]
[5,"MATORVIEZORNAVA Frédéric","JUS POMME","ASFAA Foyer Renoir",86,82,null,168,143.15,6]
[1,"DUCROCQ Guillaume","ESTORIAC","Association Sportive des Vallées",82,84,null,166,133.33000000000001,7]

{"sheet":"ATTELAGE","index":4,"n_rows":40,"n_cols":16,"rows_kept":40,"cut":false,"hidden":false,"merged":[[0,0,0,15],[1,0,1,15],[2,0,2,15]]}
["CHAMPIONNAT DE FRANCE SPORT ADAPTE EQUITATION"]
["19 et 20 JUIN 2014 - LES RENES DE LA VIE - SAINT LO"]
["ATTELAGE - DIVISION 1 VETERANS"]
[]
[]
[null,"Nombre de partants :",{"$f":"COUNTA(B8:B40)","v":0},null,null,null,null,null,"Tps maxi :",173]
["Dossard","Cavalier","Cheval","Association","Pénalités Piste","Pénalités Marathon","Note style cavalier","Total 1ère Manche","Pénalités Piste","Pénalités Marathon","Note style cavalier","Temps réalisé","Pénalités Temps","Total 2ème Manche","TOTAL FINAL","Classement"]
[null,null,null,null,null,null,null,{"$f":"G8-F8-E8","v":0},null,null,null,null,{"$f":"IF(L8>$J$6,(L8-$J$6)*0.5,0)","v":0},{"$f":"K8-J8-I8-M8","v":0},{"$f":"H8+N8","v":0}]
[null,null,null,null,null,null,null,0,null,null,null,null,0,0,0]
[null,null,null,null,null,null,null,0,null,null,null,null,0,0,0]
[null,null,null,null,null,null,null,0,null,null,null,null,0,0,0]
[null,null,null,null,null,null,null,0,null,null,null,null,0,0,0]
[null,null,null,null,null,null,null,0,null,null,null,null,0,0,0]
[null,null,null,null,null,null,null,0,null,null,null,null,0,0,0]
[null,null,null,null,null,null,null,0,null,null,null,null,0,0,0]
[null,null,null,null,null,null,null,0,null,null,null,null,0,0,0]
[null,null,null,null,null,null,null,0,null,null,null,null,0,0,0]
[null,null,null,null,null,null,null,0,null,null,null,null,0,0,0]
[null,null,null,null,null,null,null,0,null,null,null,null,0,0,0]
[null,null,null,null,null,null,null,0,null,null,null,null,0,0,0]
[null,null,null,null,null,null,null,0,null,null,null,null,0,0,0]
[null,null,null,null,null,null,null,0,null,null,null,null,0,0,0]
[null,null,null,null,null,null,null,0,null,null,null,null,0,0,0]
[null,null,null,null,null,null,null,0,null,null,null,null,0,0,0]
[null,null,null,null,null,null,null,0,null,null,null,null,0,0,0]
[null,null,null,null,null,null,null,0,null,null,null,null,0,0,0]
[null,null,null,null,null,null,null,0,null,null,null,null,0,0,0]
[null,null,null,null,null,null,null,0,null,null,null,null,0,0,0]
[null,null,null,null,null,null,null,0,null,null,null,null,0,0,0]
[null,null,null,null,null,null,null,0,null,null,null,null,0,0,0]
[null,null,null,null,null,null,null,0,null,null,null,null,0,0,0]
[null,null,null,null,null,null,null,0,null,null,null,null,0,0,0]
[null,null,null,null,null,null,null,0,null,null,null,null,0,0,0]
[null,null,null,null,null,null,null,0,null,null,null,null,0,0,0]
[null,null,null,null,null,null,null,0,null,null,null,null,0,0,0]
[null,null,null,null,null,null,null,0,null,null,null,null,0,0,0]
[null,null,null,null,null,null,null,0,null,null,null,null,0,0,0]
[null,null,null,null,null,null,null,0,null,null,null,null,0,0,0]
[null,null,null,null,null,null,null,0,null,null,null,null,0,0,0]
[null,null,null,null,null,null,null,0,null,null,null,null,0,0,0]

{"sheet":"COMBINE","index":5,"n_rows":12,"n_cols":9,"rows_kept":12,"cut":false,"hidden":false,"merged":[[0,0,0,8],[1,0,1,8],[2,0,2,8]]}
["CHAMPIONNAT DE FRANCE SPORT ADAPTE EQUITATION"]
["19 et 20 JUIN 2014 - LES RENES DE LA VIE - SAINT LO"]
["COMBINE - DIVISION 1 VETERANS"]
[]
[]
[null,"Nombre de partants :",{"$f":"COUNTA(B8:B12)","v":5}]
["Dossard","Cavalier","Cheval","Association","Total Dressage","Total CSO","Total Cross","TOTAL","Classement"]
[8,"GRAVE Michel","NAOMIE","Les rênes de la vie (Poney Club La Choinetière)",{"$f":"IF(A8=0,0,VLOOKUP(A8,Dressage,9))","v":141},{"$f":"IF(A8=0,0,VLOOKUP(A8,CSO,7))","v":31},{"$f":"IF(A8=0,0,VLOOKUP(A8,Cross,10))","v":31.5},{"$f":"IF(A8=0,0,SUM(E8:G8))","v":203.5},1]
[9,"LE GUEN Bruno","UN ESPOIR","CLAP 22",{"$f":"IF(A9=0,0,VLOOKUP(A9,Dressage,9))","v":140.5},{"$f":"IF(A9=0,0,VLOOKUP(A9,CSO,7))","v":25},{"$f":"IF(A9=0,0,VLOOKUP(A9,Cross,10))","v":20.5},{"$f":"IF(A9=0,0,SUM(E9:G9))","v":186},2]
[3,"PEGUILLAT Nathalie","BARTH","ASAL 39",{"$f":"IF(A10=0,0,VLOOKUP(A10,Dressage,9))","v":127.5},{"$f":"IF(A10=0,0,VLOOKUP(A10,CSO,7))","v":21},{"$f":"IF(A10=0,0,VLOOKUP(A10,Cross,10))","v":27.5},{"$f":"IF(A10=0,0,SUM(E10:G10))","v":176},3]
[2,"ISSNER Albert","ISMAEL","ASCETH Mulhouse",{"$f":"IF(A11=0,0,VLOOKUP(A11,Dressage,9))","v":106},{"$f":"IF(A11=0,0,VLOOKUP(A11,CSO,7))","v":30.5},{"$f":"IF(A11=0,0,VLOOKUP(A11,Cross,10))","v":31},{"$f":"IF(A11=0,0,SUM(E11:G11))","v":167.5},4]
[1,"DUCROCQ Guillaume","ESTORIAC","Association Sportive des Vallées",{"$f":"IF(A12=0,0,VLOOKUP(A12,Dressage,9))","v":113},{"$f":"IF(A12=0,0,VLOOKUP(A12,CSO,7))","v":38},{"$f":"IF(A12=0,0,VLOOKUP(A12,Cross,10))","v":13},{"$f":"IF(A12=0,0,SUM(E12:G12))","v":164},5]